bitfinex-derivatives/quotes_SOLF0:USTF0_20241101
["timestamp","ask_amount","ask_price","bid_price","bid_amount"]
[1730425554323,10.02941896,168.2,168.13,3.24]
[1730425554931,2.9772,168.17,168.13,3.24]
[1730425557022,2.9773,168.16,168.13,3.24]
[1730425557222,3.24,168.22,168.13,3.24]
[1730425557524,10.02941896,168.21,168.13,3.24]
[1730425557925,2.9769,168.19,168.13,3.24]
[1730425558230,10.02941896,168.21,168.13,3.24]
[1730425558533,2.9775,168.16,168.13,3.24]
[1730425561437,0.8795,168.23,168.13,3.24]
[1730425561438,10.90891896,168.23,168.13,3.24]
[1730425562130,0.8795,168.23,168.13,3.24]
[1730425562337,0.8795,168.23,168.13,5.8348]
[1730425562527,2.9764,168.22,168.17,2.977]
[1730425562731,105.34769768,168.28,168.18,3.24]
[1730425563226,2.9761,168.23,168.19,2.9767]
[1730425563434,2.9761,168.23,168.18,3.24]
[1730425564230,2.9767,168.2,168.15,13.00691896]
[1730425564426,10.02941896,168.25,168.16,3.24]
[1730425565334,115.37711664,168.28,168.16,3.24]
[1730425565637,115.37711664,168.28,168.17,10.02941896]
[1730425565835,2.9761,168.23,168.19,2.9767]
[1730425567242,2.9761,168.23,168.18,2.9769]
[1730425567537,115.37711664,168.28,168.18,2.9769]
[1730425567538,2.9763,168.22,168.18,2.9769]
[1730425567949,115.37711664,168.28,168.18,2.9769]
[1730425568148,2.9761,168.23,168.19,3.24]
[1730425568347,2.9761,168.23,168.19,6.2167]
[1730425569038,2.9758,168.25,168.2,2.9766]
[1730425569346,105.34769768,168.28,168.19,3.24]
[1730425569347,105.34769768,168.28,168.19,13.26941896]
[1730425569543,105.34769768,168.28,168.2,1.2913]
[1730425569743,2.9757,168.26,168.21,2.9764]
[1730425570150,2.9757,168.26,168.21,1.3527]
[1730425570449,2.9754,168.27,168.22,2.9761]
[1730425570649,105.34769768,168.28,168.21,1.3527]
[1730425571740,2.9757,168.26,168.21,4.329]
[1730425571947,115.37711664,168.28,168.22,3.24]
[1730425572147,2.9749,168.3,168.23,2.976]
[1730425572351,13.26941896,168.33,168.23,2.976]
[1730425572542,10.02941896,168.31,168.22,3.24]
[1730425572743,2.9751,168.29,168.22,6.2161]
[1730425572946,10.02941896,168.31,168.22,6.2161]
[1730425573150,10.02941896,168.31,168.22,3.24]
[1730425573355,2.9754,168.27,168.23,2.9761]
[1730425573856,2.9753,168.28,168.23,2.976]
[1730425574154,10.02941896,168.33,168.23,2.976]
[1730425574655,10.02941896,168.33,168.22,3.24]
[1730425574656,10.02941896,168.33,168.22,13.26941896]
[1730425575350,2.975,168.29,168.24,2.9757]
[1730425575754,2.975,168.29,168.22,13.26941896]
[1730425575955,4.1167,168.35,168.26,2.9754]
[1730425575956,2.9747,168.31,168.26,2.9754]
[1730425576158,2.9747,168.31,168.27,3.24]
[1730425576455,13.26941896,168.38,168.27,3.24]
[1730425576657,2.9747,168.31,168.27,3.24]
[1730425576951,13.26941896,168.38,168.27,3.24]
[1730425577360,2.9747,168.31,168.27,3.24]
[1730425577546,13.26941896,168.38,168.27,3.24]
[1730425578557,2.9748,168.31,168.27,3.24]
[1730425580760,2.9748,168.3,168.27,3.24]
[1730425582862,13.26941896,168.38,168.27,3.24]
[1730425583459,2.9748,168.31,168.27,3.24]
[1730425583858,13.26941896,168.38,168.27,3.24]
[1730425584854,2.974,168.35,168.27,3.24]
[1730425585059,13.26941896,168.38,168.27,3.24]
[1730425585760,13.26941896,168.38,168.27,6.2152]
[1730425585968,13.26941896,168.38,168.27,3.24]
[1730425586262,2.9746,168.32,168.27,3.24]
[1730425586560,10.02941896,168.38,168.27,3.24]
[1730425586766,2.1527,168.4,168.29,10.02941896]
[1730425586767,12.18211896,168.4,168.29,10.02941896]
[1730425587158,2.9743,168.34,168.29,13.00421896]
[1730425587555,12.18211896,168.4,168.29,10.02941896]
[1730425587966,2.9743,168.34,168.3,2.9747]
[1730425588365,2.9743,168.33,168.29,13.00441896]
[1730425589363,2.9742,168.34,168.3,2.9748]
[1730425589561,12.18211896,168.4,168.3,2.9748]
[1730425589864,2.9736,168.37,168.3,2.9748]
[1730425590069,12.18211896,168.4,168.3,2.9748]
[1730425590269,12.18211896,168.4,168.29,10.02941896]
[1730425590270,2.1527,168.4,168.31,10.02941896]
[1730425590465,2.1527,168.4,168.32,3.24]
[1730425590771,2.9741,168.35,168.32,3.24]
[1730425591159,2.9742,168.34,168.31,10.02941896]
[1730425591371,2.9742,168.34,168.32,3.24]
[1730425594181,2.9735,168.38,168.32,3.24]
[1730425594475,6.40151005,168.38,168.32,9.64151005]
[1730425595964,2.9743,168.34,168.32,9.64151005]
[1730425597468,1.2764,168.4,168.3,6.40151005]
[1730425597469,6.40151005,168.36,168.3,6.40151005]
[1730425597674,6.40151005,168.36,168.3,9.62151005]
[1730425597874,6.40151005,168.34,168.28,6.40151005]
[1730425598273,6.40151005,168.33,168.27,6.40151005]
[1730425598573,6.40151005,168.33,168.2,1.3853]
[1730425598574,10.0110821,168.33,168.23,3.22]
[1730425598776,2.9758,168.25,168.23,3.22]
[1730425598980,10.0110821,168.31,168.2,1.3853]
[1730425599277,2.9765,168.21,168.19,4.5207]
[1730425599477,10.0110821,168.29,168.19,4.5207]
[1730425600378,0.8771,168.3,168.19,14.5317821]
[1730425600569,2.9759,168.25,168.19,17.5083821]
[1730425600770,3.22,168.28,168.19,3.22]
[1730425600970,13.2310821,168.28,168.19,3.22]
[1730425602079,2.9764,168.22,168.19,3.22]
[1730425602374,13.2310821,168.28,168.18,2.9769]
[1730425602579,13.2310821,168.28,168.18,6.2169]
[1730425602780,2.9762,168.23,168.18,6.2169]
[1730425603083,2.9762,168.23,168.19,2.9768]
[1730425603680,2.976,168.24,168.19,2.9767]
[1730425603879,2.976,168.24,168.18,3.24]
[1730425604179,2.9758,168.25,168.2,2.9765]
[1730425604373,13.2310821,168.28,168.18,3.24]
[1730425604574,4.5154,168.32,168.19,10.0110821]
[1730425604974,4.5154,168.32,168.21,10.0110821]
[1730425605379,2.9751,168.29,168.24,2.9757]
[1730425605679,2.9751,168.29,168.24,6.2157]
[1730425606181,2.9751,168.29,168.25,2.9757]
[1730425607486,3.24,168.32,168.24,3.24]
[1730425607685,10.0110821,168.35,168.25,1.363]
[1730425608382,2.9748,168.31,168.26,2.9755]
[1730425608587,10.0110821,168.35,168.26,2.9755]
[1730425609386,10.0110821,168.33,168.25,1.363]
[1730425610090,10.0110821,168.33,168.24,3.24]
[1730425610493,10.0110821,168.33,168.23,2.9761]
[1730425610494,10.0110821,168.3,168.23,3.24]
[1730425610789,2.9757,168.26,168.23,3.24]
[1730425611890,2.9754,168.27,168.23,3.24]
[1730425612493,2.9756,168.26,168.23,3.24]
[1730425612887,10.0110821,168.32,168.22,2.9762]
[1730425613093,2.9759,168.25,168.22,3.24]
[1730425613487,10.0110821,168.32,168.22,3.24]
[1730425614087,22.0174,168.36,168.22,3.24]
[1730425614088,2.9759,168.24,168.22,3.24]
[1730425614286,2.9759,168.24,168.19,11.3638821]
[1730425614489,10.0110821,168.28,168.19,4.5928]
[1730425614686,2.9766,168.21,168.19,4.5928]
[1730425614885,10.0110821,168.28,168.17,4.5916]
[1730425615189,0.8782,168.29,168.14,10.0110821]
[1730425615190,10.0110821,168.25,168.14,10.0110821]
[1730425615394,10.0110821,168.25,168.15,3.24]
[1730425615986,27.9110821,168.25,168.15,3.24]
[1730425616187,2.9773,168.16,168.15,3.24]
[1730425616705,10.0110821,168.2,168.1,3.24]
[1730425617000,13.2510821,168.2,168.1,3.24]
[1730425617197,10.0110821,168.18,168.1,3.24]
[1730425617409,2.9782,168.11,168.1,3.24]
[1730425617793,2.9782,168.11,168.08,2.6178]
[1730425618195,10.0110821,168.18,168.08,2.6178]
[1730425618498,2.978,168.12,168.08,2.6178]
[1730425619301,10.0110821,168.18,168.08,2.6178]
[1730425619603,1.3647,168.19,168.08,2.6178]
[1730425620131,10.0110821,168.2,168.08,2.6178]
[1730425621531,10.0110821,168.18,168.08,2.6178]
[1730425621723,10.0110821,168.15,168.08,2.6178]
[1730425621924,10.0110821,168.15,168.05,3.24]
[1730425622311,2.9785,168.1,168.05,6.2192]
[1730425622517,10.0110821,168.15,168.05,3.24]
[1730425622730,10.0110821,168.13,168.05,3.24]
[1730425623125,2.9786,168.09,168.05,3.24]
[1730425623626,10.0110821,168.15,168.04,3.24]
[1730425623829,2.9782,168.12,168.07,2.9787]
[1730425624267,10.0110821,168.15,168.04,3.24]
[1730425624518,2.9787,168.09,168.04,6.2194]
[1730425624715,10.0110821,168.12,168.03,5.9159]
[1730425624915,10.0110821,168.12,168.03,8.8955]
[1730425625125,10.0110821,168.14,168.03,5.9159]
[1730425625316,3.24,168.16,168.05,10.0110821]
[1730425625509,2.9782,168.11,168.06,2.9791]
[1730425626606,10.0110821,168.15,168.05,3.24]
[1730425626607,2.978,168.12,168.07,2.9788]
[1730425627106,2.9782,168.11,168.07,2.9788]
[1730425627504,2.9782,168.11,168.05,3.24]
[1730425627505,10.0110821,168.15,168.05,3.24]
[1730425627705,2.9788,168.08,168.05,3.24]
[1730425628003,10.0110821,168.15,168.05,3.24]
[1730425628203,2.9785,168.1,168.05,6.2192]
[1730425630004,2.9782,168.12,168.08,2.9787]
[1730425630207,10.0110821,168.17,168.05,13.2510821]
[1730425630408,10.0110821,168.17,168.07,10.0110821]
[1730425630709,3.22,168.18,168.11,2.9782]
[1730425630710,2.9776,168.15,168.11,2.9782]
[1730425631611,2.9776,168.15,168.1,6.1983]
[1730425632510,2.9775,168.15,168.1,6.1983]
[1730425632709,3.22,168.21,168.1,3.22]
[1730425632905,3.22,168.21,168.11,2.6407]
[1730425633102,2.977,168.18,168.11,2.6407]
[1730425633304,2.977,168.18,168.13,2.9778]
[1730425634710,2.9772,168.17,168.13,2.9778]
[1730425635309,2.9775,168.15,168.11,5.6187]
[1730425636606,1.3527,168.22,168.13,10.0110821]
[1730425636809,70.56789151,168.23,168.13,10.0110821]
[1730425636810,67.34789151,168.23,168.13,10.0110821]
[1730425637005,67.34789151,168.23,168.11,2.6407]
[1730425637006,77.35897361,168.23,168.11,12.6517821]
[1730425637508,77.35897361,168.23,168.14,2.9776]
[1730425638111,2.9769,168.19,168.14,2.9776]
[1730425638410,77.35897361,168.23,168.11,12.6517821]
[1730425638617,2.9765,168.21,168.17,2.9771]
[1730425639006,67.34789151,168.23,168.13,10.0110821]
[1730425639214,2.9766,168.2,168.13,10.0110821]
[1730425639419,77.35897361,168.23,168.12,3.22]
[1730425639623,2.9771,168.18,168.13,2.9777]
[1730425639813,2.9771,168.18,168.12,3.22]
[1730425640311,77.35897361,168.23,168.12,3.22]
[1730425641316,77.35897361,168.23,168.14,2.9776]
[1730425642722,10.0110821,168.21,168.11,5.8607]
[1730425642914,2.9776,168.15,168.11,5.8607]
[1730425643119,2.9776,168.15,168.11,8.8389]
[1730425643816,2.9774,168.16,168.11,8.8389]
[1730425644219,13.2310821,168.21,168.11,5.8607]
[1730425644411,2.977,168.18,168.11,15.8717821]
[1730425644619,13.2310821,168.21,168.11,5.8607]
[1730425646319,13.2310821,168.21,168.13,2.9777]
[1730425646320,2.9773,168.17,168.13,2.9777]
[1730425648110,2.9775,168.15,168.11,8.8388]
[1730425648321,13.2310821,168.21,168.11,5.8607]
[1730425648719,10.0110821,168.16,168.08,3.22]
[1730425648914,10.0110821,168.16,168.04,10.0110821]
[1730425649115,2.9785,168.1,168.05,6.1991]
[1730425649315,10.0110821,168.13,168.05,6.1991]
[1730425649511,10.0110821,168.13,168.05,2.9791]
[1730425649723,2.9787,168.08,168.04,6.1994]
[1730425651219,10.0110821,168.13,168.02,3.9669]
[1730425651426,2.979,168.07,168.03,6.1996]
[1730425652017,0.8772,168.14,168.03,6.1996]
[1730425652018,2.9784,168.1,168.06,2.9791]
[1730425652424,10.0110821,168.14,168.04,1.2675]
[1730425652620,2.9783,168.11,168.04,1.2675]
[1730425652924,10.0110821,168.14,168.04,1.2675]
[1730425654132,1.2727,168.15,168.04,11.2785821]
[1730425654423,10.0110821,168.17,168.04,11.2785821]
[1730425655226,2.9778,168.14,168.09,2.9784]
[1730425655428,3.22,168.19,168.08,3.22]
[1730425655629,3.22,168.19,168.09,1.2758]
[1730425655820,2.9774,168.16,168.11,2.978]
[1730425656121,3.22,168.19,168.09,11.2868821]
[1730425656122,3.22,168.19,168.09,2.6144]
[1730425656421,10.0110821,168.17,168.09,1.2758]
[1730425656621,10.0110821,168.14,168.07,3.22]
[1730425656919,2.9786,168.09,168.07,3.22]
[1730425657120,10.0110821,168.14,168.03,3.22]
[1730425657121,10.0110821,168.12,168.03,3.22]
[1730425657329,10.0110821,168.09,168.0,3.22]
[1730425657623,10.0110821,168.09,168.03,2.9796]
[1730425657925,10.0110821,168.09,168.0,3.22]
[1730425658119,2.9789,168.07,168.02,2.9796]
[1730425659324,35.30905593,168.13,168.0,3.22]
[1730425660727,2.9789,168.07,168.02,2.9797]
[1730425662418,3.22,168.12,168.0,3.22]
[1730425662625,2.9786,168.09,168.0,3.22]
[1730425663025,2.9786,168.09,168.04,2.9793]
[1730425665534,2.9787,168.08,168.04,2.9793]
[1730425667427,4.6016,168.13,168.0,3.22]
[1730425668335,4.6016,168.13,168.04,2.9794]
[1730425668930,1.3816,168.13,168.06,2.9789]
[1730425669136,4.0984,168.15,168.06,2.9789]
[1730425669431,2.9783,168.11,168.06,2.9789]
[1730425669932,2.9784,168.1,168.06,2.9789]
[1730425670134,4.0984,168.15,168.05,3.22]
[1730425670135,4.0984,168.15,168.05,6.1992]
[1730425670534,2.9785,168.1,168.05,6.1992]
[1730425671827,4.0984,168.15,168.03,2.9796]
[1730425672127,16.02745593,168.13,168.03,6.1996]
[1730425672430,2.9788,168.08,168.03,6.1996]
[1730425672823,16.02745593,168.13,168.03,6.1996]
[1730425673030,2.9788,168.08,168.04,2.9794]
[1730425673227,16.02745593,168.13,168.03,3.22]
[1730425673730,2.9785,168.1,168.03,3.22]
[1730425674038,16.02745593,168.13,168.03,3.22]
[1730425674732,2.9787,168.09,168.05,2.9791]
[1730425675031,4.0984,168.15,168.03,3.22]
[1730425676239,2.9784,168.1,168.06,2.9789]
[1730425677530,3.22,168.15,168.03,3.22]
[1730425677531,2.9782,168.11,168.03,3.22]
[1730425678630,2.9782,168.11,168.07,2.9788]
[1730425679545,2.9787,168.09,168.05,2.9792]
[1730425679839,2.9787,168.09,168.03,3.22]
[1730425680538,2.9787,168.09,168.04,2.9793]
[1730425680740,2.9787,168.09,168.03,3.22]
[1730425681138,2.9787,168.09,168.05,2.9791]
[1730425682036,2.9787,168.08,168.05,2.9791]
[1730425682434,10.0142117,168.13,168.03,3.22]
[1730425682635,10.0142117,168.11,168.03,3.22]
[1730425683138,2.979,168.07,168.03,6.1996]
[1730425683442,10.0142117,168.11,168.03,6.1996]
[1730425684137,21.12,168.15,168.03,3.22]
[1730425684138,10.0142117,168.13,168.03,3.22]
[1730425684337,2.9782,168.11,168.03,3.22]
[1730425685142,2.9787,168.09,168.04,2.9793]
[1730425686046,2.9787,168.09,168.03,3.22]
[1730425686250,2.9787,168.09,168.05,2.9792]
[1730425687342,10.0142117,168.13,168.03,3.22]
[1730425687550,2.979,168.07,168.03,3.22]
[1730425688152,2.979,168.07,168.03,6.1995]
[1730425688449,10.0142117,168.11,168.03,6.1996]
[1730425689845,10.0142117,168.11,168.04,2.9794]
[1730425691854,2.9789,168.07,168.02,6.1996]
[1730425692440,10.0142117,168.11,168.02,3.22]
[1730425692647,10.0142117,168.08,167.99,4.4697]
[1730425692954,10.0142117,168.08,167.99,1.2497]
[1730425693248,3.22,168.1,167.98,5.5947]
[1730425693249,10.0142117,168.03,167.98,1.2758]
[1730425693454,10.0142117,168.03,167.94,4.2895]
[1730425693952,2.9805,167.99,167.94,4.2895]
[1730425694349,2.9805,167.99,167.95,2.981]
[1730425695044,2.9802,168.0,167.95,2.981]
[1730425695353,3.22,168.05,167.94,1.3083]
[1730425696154,2.9799,168.02,167.97,2.9806]
[1730425696856,2.9797,168.03,167.99,2.9802]
[1730425697057,10.0142117,168.08,167.98,3.22]
[1730425697355,2.9789,168.07,168.03,2.9795]
[1730425697542,10.0142117,168.08,167.99,2.6046]
[1730425697947,2.9789,168.07,168.03,2.9796]
[1730425698145,10.0142117,168.08,167.99,2.6046]
[1730425698553,10.0142117,168.13,168.0,10.0142117]
[1730425698956,10.0142117,168.13,168.01,1.2557]
[1730425699154,10.0142117,168.1,168.01,1.2557]
[1730425699560,2.9789,168.08,168.03,2.9796]
[1730425699756,10.0142117,168.1,168.03,2.9796]
[1730425699958,10.0142117,168.08,168.01,1.2557]
[1730425700264,10.0142117,168.08,167.99,2.6046]
[1730425700459,10.0142117,168.05,167.99,1.2494]
[1730425700766,2.9796,168.03,167.98,6.2005]
[1730425700955,10.0142117,168.05,167.98,6.2005]
[1730425701454,2.9798,168.03,167.98,6.2005]
[1730425701856,2.9796,168.03,167.98,6.2005]
[1730425702163,13.2342117,168.08,167.98,3.22]
[1730425702563,10.0142117,168.05,167.98,3.22]
[1730425703257,10.0142117,168.05,167.96,2.6194]
[1730425703755,2.9803,168.0,167.96,2.6194]
[1730425704151,2.9797,168.03,167.96,2.6194]
[1730425704366,10.0142117,168.05,167.96,2.6194]
[1730425704957,2.9803,168.0,167.96,2.6194]
[1730425705257,10.0142117,168.05,167.96,2.6194]
[1730425705458,12.1451117,168.07,167.96,2.6194]
[1730425705855,2.9799,168.02,167.98,2.9805]
[1730425706259,2.9802,168.0,167.96,5.6002]
[1730425707259,2.9805,167.99,167.96,2.6194]
[1730425707461,10.0142117,168.05,167.92,10.0142117]
[1730425707762,10.0142117,168.05,167.93,4.5023]
[1730425708065,2.9804,167.99,167.95,2.981]
[1730425708561,10.0142117,168.02,167.93,4.2635]
[1730425708760,10.0142117,168.02,167.93,4.5023]
[1730425708959,10.0142117,168.0,167.93,1.2823]
[1730425709160,10.0142117,168.0,167.91,3.22]
[1730425709161,10.0142117,168.0,167.91,6.2017]
[1730425709666,2.9806,167.98,167.91,6.2017]
[1730425709862,10.0142117,168.0,167.91,6.2017]
[1730425710468,2.981,167.96,167.91,6.2017]
[1730425711461,10.0142117,168.0,167.9,1.3694]
[1730425711855,2.9821,167.9,167.81,10.0142117]
[1730425712058,2.9821,167.9,167.81,13.2342117]
[1730425712259,2.9821,167.9,167.82,2.5542]
[1730425712454,2.9821,167.89,167.82,2.5542]
[1730425713657,2.9821,167.89,167.84,2.983]
[1730425714061,2.9818,167.91,167.86,2.9826]
[1730425715266,3.22,167.95,167.86,3.22]
[1730425715762,2.9815,167.93,167.86,3.22]
[1730425716164,3.22,167.95,167.86,3.22]
[1730425716359,2.9812,167.94,167.9,2.9818]
[1730425716565,10.0142117,167.98,167.9,2.9818]
[1730425716960,2.9811,167.95,167.9,2.9818]
[1730425717570,10.0142117,167.98,167.87,10.0142117]
[1730425718162,2.981,167.96,167.9,2.9819]
[1730425718370,2.981,167.96,167.87,10.0142117]
[1730425718865,10.0142117,167.98,167.87,10.0142117]
[1730425719063,2.9808,167.97,167.87,10.0142117]
[1730425719374,10.0142117,167.98,167.91,2.9816]
[1730425719670,2.9809,167.96,167.87,10.0142117]
[1730425720059,2.9809,167.96,167.89,2.982]
[1730425720273,2.9809,167.96,167.87,10.0142117]
[1730425720868,2.9809,167.96,167.91,2.9816]
[1730425722572,2.9806,167.98,167.94,2.9812]
[1730425722768,3.22,168.02,167.91,3.22]
[1730425722966,13.2342117,168.03,167.91,3.22]
[1730425723367,2.9805,167.98,167.94,2.9811]
[1730425723665,2.9805,167.98,167.91,3.22]
[1730425724572,2.9805,167.98,167.93,2.9812]
[1730425725166,10.0142117,168.0,167.91,3.22]
[1730425725369,10.0142117,168.0,167.9,3.9498]
[1730425725569,10.0142117,168.0,167.9,7.1698]
[1730425726171,2.9807,167.97,167.92,2.9815]
[1730425726362,10.0142117,168.0,167.92,2.9815]
[1730425727166,10.0142117,167.96,167.87,3.22]
[1730425727775,10.0142117,167.93,167.87,3.22]
[1730425728179,2.9819,167.9,167.87,3.22]
[1730425728969,2.9819,167.9,167.86,2.9825]
[1730425729178,2.9823,167.88,167.85,1.34]
[1730425729373,10.0142117,167.93,167.85,1.34]
[1730425729673,10.0142117,167.93,167.81,10.0142117]
[1730425729875,13.2342117,167.93,167.82,3.22]
[1730425730072,2.9821,167.9,167.85,2.9827]
[1730425730482,13.2342117,167.93,167.82,3.22]
[1730425731067,2.9822,167.89,167.84,2.983]
[1730425732683,2.9823,167.88,167.83,2.983]
[1730425732869,2.9823,167.88,167.82,3.22]
[1730425733180,2.9823,167.88,167.83,2.9831]
[1730425733681,13.2342117,167.93,167.83,2.9831]
[1730425733883,2.9824,167.88,167.83,2.9831]
[1730425735279,2.9825,167.87,167.83,2.9831]
[1730425735981,10.0142117,167.91,167.81,4.2704]
[1730425736378,10.0142117,167.88,167.8,1.2789]
[1730425736584,13.2342117,167.88,167.79,2.9838]
[1730425736983,13.2342117,167.88,167.77,4.5818]
[1730425737485,13.2342117,167.88,167.79,2.9838]
[1730425737985,13.2342117,167.88,167.82,2.9832]
[1730425737986,2.9825,167.87,167.82,2.9832]
[1730425738790,3.22,167.88,167.81,10.0142117]
[1730425738983,1.2521,167.97,167.82,3.22]
[1730425738984,10.0142117,167.96,167.82,3.22]
[1730425739490,10.0142117,167.96,167.85,2.9826]
[1730425740192,10.0142117,167.96,167.82,3.22]
[1730425740991,10.0142117,167.93,167.82,3.22]
[1730425742194,2.9822,167.89,167.84,2.9828]
[1730425742495,10.0142117,167.93,167.84,2.9828]
[1730425742885,2.9825,167.87,167.83,2.983]
[1730425743086,10.0142117,167.88,167.82,3.22]
[1730425743482,2.9829,167.85,167.82,3.22]
[1730425744485,10.0142117,167.88,167.82,6.2033]
[1730425745289,2.9829,167.85,167.82,3.22]
[1730425745591,10.0142117,167.88,167.78,5.974]
[1730425745799,2.9831,167.84,167.8,2.9837]
[1730425746794,2.9829,167.85,167.81,2.9834]
[1730425746991,10.0142117,167.88,167.78,5.974]
[1730425747199,2.9833,167.83,167.79,2.9839]
[1730425747496,10.0142117,167.86,167.78,1.3666]
[1730425747703,2.9837,167.8,167.75,2.9845]
[1730425747904,10.0142117,167.84,167.75,6.2045]
[1730425748199,10.0142117,167.81,167.7,3.9079]
[1730425748397,2.9844,167.77,167.72,2.9851]
[1730425748786,10.0142117,167.81,167.72,2.9851]
[1730425748989,2.9843,167.77,167.72,2.9851]
[1730425749190,2.9843,167.77,167.71,3.22]
[1730425749500,2.9843,167.77,167.73,2.9849]
[1730425750395,10.0142117,167.81,167.7,3.9079]
[1730425750600,2.9842,167.77,167.72,2.9849]
[1730425751204,2.984,167.79,167.75,2.9845]
[1730425751491,10.0142117,167.86,167.74,10.0142117]
[1730425751693,2.9833,167.83,167.78,2.9839]
[1730425751894,10.0142117,167.86,167.76,3.22]
[1730425752102,10.0142117,167.86,167.77,2.5578]
[1730425754400,2.983,167.84,167.8,2.9836]
[1730425756498,10.0142117,167.89,167.82,2.9832]
[1730425757401,10.0142117,167.89,167.78,1.334]
[1730425757905,2.9826,167.87,167.82,2.9832]
[1730425759105,2.9823,167.88,167.78,1.334]
[1730425759495,10.0142117,167.89,167.78,1.334]
[1730425760599,2.9827,167.86,167.82,2.9832]
[1730425760801,10.0142117,167.91,167.81,3.22]
[1730425761499,2.9823,167.88,167.84,2.983]
[1730425761902,2.9821,167.89,167.85,2.9827]
[1730425762101,10.0142117,167.91,167.85,2.9827]
[1730425762303,10.0142117,167.91,167.81,3.22]
[1730425762502,2.9819,167.91,167.87,2.9823]
[1730425764110,13.2342117,167.94,167.86,2.9825]
[1730425764420,13.2342117,167.94,167.81,13.2342117]
[1730425764421,10.0142117,167.91,167.81,3.22]
[1730425765008,10.0142117,167.89,167.79,10.0142117]
[1730425765214,10.0142117,167.89,167.8,3.22]
[1730425765402,31.1342117,167.94,167.78,1.334]
[1730425765403,10.0142117,167.86,167.78,3.22]
[1730425765614,2.983,167.84,167.79,2.9837]
[1730425766020,2.9833,167.83,167.78,2.984]
[1730425766319,10.0142117,167.86,167.78,3.22]
[1730425766720,2.983,167.85,167.8,2.9836]
[1730425766921,10.0142117,167.86,167.8,2.9836]
[1730425768316,2.9831,167.84,167.8,2.9836]
[1730425769326,2.9829,167.85,167.81,2.9835]
[1730425769513,1.3009,167.88,167.78,3.22]
[1730425770320,2.9828,167.86,167.82,2.9833]
[1730425772527,2.9828,167.85,167.81,2.9835]
[1730425774023,2.9829,167.85,167.81,2.9835]
[1730425775831,2.983,167.84,167.8,2.9837]
[1730425776826,2.9832,167.83,167.78,3.22]
[1730425777027,2.9832,167.83,167.79,2.9838]
[1730425777529,10.0142117,167.89,167.81,2.9835]
[1730425778025,2.9825,167.87,167.81,2.9835]
[1730425778223,10.0142117,167.89,167.81,2.9835]
[1730425778630,2.9828,167.86,167.81,2.9835]
[1730425779525,10.0142117,167.89,167.81,2.9835]
[1730425780228,2.9828,167.86,167.81,2.9835]
[1730425780631,2.9828,167.86,167.78,13.2342117]
[1730425780827,3.22,167.9,167.78,13.2342117]
[1730425780828,2.9823,167.88,167.8,10.0142117]
[1730425781229,3.22,167.92,167.85,2.9827]
[1730425781427,2.9819,167.9,167.85,2.9827]
[1730425782024,1.3344,167.94,167.84,3.22]
[1730425782228,10.0142117,167.91,167.85,1.2733]
[1730425782533,10.0142117,167.91,167.8,3.22]
[1730425782534,2.9828,167.86,167.8,3.22]
[1730425782829,10.0142117,167.88,167.8,3.22]
[1730425783228,2.9827,167.86,167.8,6.2037]
[1730425783428,10.0142117,167.88,167.8,6.2037]
[1730425784235,2.9829,167.85,167.8,6.2037]
[1730425785132,2.9829,167.85,167.81,2.9835]
[1730425786835,2.9827,167.86,167.81,2.9835]
[1730425788744,10.0142117,167.88,167.79,3.22]
[1730425788942,2.9831,167.84,167.79,6.2037]
[1730425790143,10.0142117,167.88,167.77,1.2894]
[1730425790337,10.0142117,167.88,167.8,2.9836]